bitfinex/quotes_SOLUSD_20240816
["timestamp","ask_amount","ask_price","bid_price","bid_amount"]
[1723842627208,20.0,141.27,141.22,52.081]
[1723842627375,20.0,141.29,141.22,52.081]
[1723842627576,20.0,141.29,141.22,45.0]
[1723842627577,27.0776,141.29,141.22,45.0]
[1723842628301,20.0,141.29,141.22,52.081]
[1723842629384,20.0,141.29,141.23,8.47535642]
[1723842629705,20.0,141.3,141.23,8.47535642]
[1723842629905,27.0771,141.3,141.22,52.081]
[1723842630079,20.0,141.3,141.23,7.0806]
[1723842630694,27.0771,141.3,141.22,52.081]
[1723842631402,20.0,141.3,141.22,45.0]
[1723842631607,13.5,141.25,141.18,385.3]
[1723842632702,13.5,141.25,141.19,45.0]
[1723842633500,35.3406,141.25,141.17,17.7087]
[1723842633797,27.0803,141.24,141.17,17.7087]
[1723842633988,20.0,141.24,141.17,24.7922]
[1723842635405,42.4202,141.25,141.17,24.7922]
[1723842635609,20.0,141.24,141.18,7.0831]
[1723842635800,20.0,141.24,141.19,45.0]
[1723842636891,21.8406,141.25,141.19,45.0]
[1723842637898,35.3406,141.25,141.16,15.9437]
[1723842638101,13.5,141.23,141.16,15.9437]
[1723842638297,20.5807,141.23,141.16,15.9437]
[1723842639513,7.0813,141.22,141.14,13.1516]
[1723842639695,33.5,141.21,141.12,15.6816]
[1723842639898,40.5817,141.21,141.13,7.0856]
[1723842640095,7.0822,141.2,141.12,22.7676]
[1723842640286,20.5817,141.21,141.13,7.0855]
[1723842641994,7.0817,141.21,141.13,7.0855]
[1723842647111,21.8406,141.25,141.15,33.78]
[1723842647316,27.0802,141.24,141.16,53.50011892]
[1723842647498,7.0802,141.24,141.16,53.50011892]
[1723842648087,7.0802,141.24,141.17,7.0836]
[1723842648294,28.9203,141.25,141.18,45.0]
[1723842648719,21.8406,141.25,141.18,52.083]
[1723842649014,6.4546,141.25,141.18,52.083]
[1723842649718,13.5343,141.25,141.18,52.083]
[1723842649923,7.0837,141.17,141.12,15.6816]
[1723842650139,33.78,141.2,141.12,15.6816]
[1723842650427,20.0,141.19,141.12,15.6816]
[1723842651101,27.0827,141.19,141.12,15.6816]
[1723842651706,20.0,141.19,141.12,22.7677]
[1723842651912,50.1962,141.24,141.12,49.4616]
[1723842652135,16.4162,141.24,141.16,7.084]
[1723842652416,16.4162,141.24,141.17,45.0]
[1723842652791,16.4162,141.24,141.16,7.084]
[1723842652998,23.4967,141.24,141.16,7.084]
[1723842653420,20.0,141.23,141.16,7.084]
[1723842653936,20.0,141.23,141.17,7.0836]
[1723842654107,13.5343,141.25,141.18,45.0]
[1723842654307,20.0,141.24,141.19,1.41627598]
[1723842654521,20.0,141.24,141.18,45.0]
[1723842657529,20.0,141.24,141.16,7.0838]
[1723842657530,27.0802,141.24,141.16,7.0838]
[1723842658741,27.0802,141.24,141.17,52.0835]
[1723842659028,20.0,141.24,141.17,52.0835]
[1723842660311,16.4162,141.27,141.18,15.3247]
[1723842660512,16.4162,141.27,141.2,33.78]
[1723842660820,20.0,141.26,141.2,40.8619]
[1723842663226,20.0,141.26,141.2,7.0819]
[1723842664007,27.0794,141.26,141.19,17.7057]
[1723842665355,7.0794,141.26,141.19,17.7057]
[1723842666729,7.0794,141.26,141.19,24.7883]
[1723842668554,23.4949,141.27,141.19,24.7883]
[1723842668721,16.4162,141.27,141.21,7.0815]
[1723842669037,6.0569,141.28,141.21,8.49745318]
[1723842669236,6.0569,141.28,141.22,45.0]
[1723842669738,6.0569,141.28,141.23,7.0804]
[1723842669929,15.3438,141.3,141.23,7.0804]
[1723842670112,20.0,141.29,141.23,7.0804]
[1723842670318,20.0,141.29,141.22,52.0809]
[1723842670713,20.0,141.29,141.22,59.1759]
[1723842670915,27.0777,141.29,141.22,52.0809]
[1723842674227,33.78,141.28,141.18,40.1146]
[1723842674426,7.0794,141.26,141.18,40.1146]
[1723842675849,7.0794,141.26,141.19,45.0]
[1723842676027,33.78,141.26,141.17,392.3834]
[1723842676219,20.0,141.25,141.17,392.3834]
[1723842677034,7.0802,141.24,141.17,392.3834]
[1723842677222,7.0802,141.24,141.17,385.3]
[1723842677643,7.0802,141.24,141.16,7.084]
[1723842678648,27.0797,141.25,141.17,7.0835]
[1723842678832,27.0797,141.25,141.17,52.0835]
[1723842679428,27.0797,141.25,141.17,59.1785]
[1723842680662,6.4514,141.27,141.19,40.875]
[1723842680841,6.4514,141.27,141.2,52.082]
[1723842681154,6.4514,141.27,141.21,1.41604137]
[1723842681536,6.4514,141.27,141.2,52.082]
[1723842681747,15.3438,141.3,141.21,40.875]
[1723842682059,15.3438,141.3,141.23,7.0804]
[1723842682236,15.3438,141.3,141.24,1.41573691]
[1723842683945,22.4211,141.3,141.23,17.7012]
[1723842687250,22.4211,141.3,141.23,24.7818]
[1723842688341,15.3438,141.3,141.23,24.7818]
[1723842688645,22.4209,141.3,141.23,24.7818]
[1723842689465,15.3438,141.3,141.23,24.7818]
[1723842692858,15.3438,141.3,141.24,52.0799]
[1723842695770,15.3438,141.3,141.23,24.7818]
[1723842697073,22.4209,141.3,141.23,24.7818]
[1723842698954,22.4211,141.3,141.22,7.0807]
[1723842699152,22.4211,141.3,141.23,52.0806]
[1723842700564,22.4211,141.3,141.23,7.0806]
[1723842704076,35.9211,141.3,141.23,7.0806]
[1723842705952,35.9211,141.3,141.22,17.7025]
[1723842705953,13.5,141.28,141.22,17.7025]
[1723842706454,20.5803,141.24,141.17,385.3]
[1723842706677,13.5,141.24,141.17,7.0835]
[1723842706984,20.0265,141.22,141.16,24.7935]
[1723842707474,20.0265,141.22,141.16,17.7095]
[1723842708082,27.1077,141.22,141.14,7.085]
[1723842708284,16.1077,141.21,141.14,7.085]
[1723842710790,23.1894,141.21,141.13,24.7988]
[1723842711000,23.1894,141.21,141.14,45.0]
[1723842711485,23.1894,141.21,141.14,52.0851]
[1723842712292,16.1077,141.21,141.14,52.0851]
[1723842714595,16.1077,141.21,141.15,7.0846]
[1723842715972,16.1077,141.21,141.14,52.0849]
[1723842716511,23.1895,141.21,141.14,45.0]
[1723842717481,23.1895,141.21,141.13,7.0856]
[1723842717482,40.8623,141.2,141.13,7.0856]
[1723842717679,7.0823,141.2,141.13,7.0856]
[1723842720099,16.1077,141.21,141.14,7.0848]
[1723842720315,16.1077,141.21,141.15,53.50109853]
[1723842722683,16.1077,141.21,141.16,17.71]
[1723842722887,6.5265,141.22,141.17,45.0]
[1723842726278,6.5265,141.22,141.16,24.794]
[1723842726695,6.5265,141.22,141.16,17.71]
[1723842727805,6.5265,141.22,141.16,24.7939]
[1723842728575,6.5265,141.22,141.08,9.86936599]
[1723842728576,6.1324,141.2,141.08,9.86936599]
[1723842728783,7.0859,141.13,141.01,33.78]
[1723842729093,33.78,141.15,141.01,33.78]
[1723842729301,7.0877,141.09,141.01,33.78]
[1723842729608,7.0872,141.1,141.01,40.8712]
[1723842729788,6.1324,141.11,140.99,17.7314]
[1723842729995,33.78,141.09,140.97,15.0874]
[1723842730186,7.0891,141.06,140.97,15.0874]
[1723842730386,7.0897,141.05,140.97,22.181]
[1723842731020,7.0908,141.03,140.94,33.78]
[1723842731185,20.0,141.02,140.92,0.8828851]
[1723842731511,33.78,141.01,140.92,0.8828851]
[1723842732110,7.0926,141.0,140.92,0.8828851]
[1723842733116,7.0926,141.0,140.92,7.9789851]
[1723842733292,7.0917,141.01,140.92,7.9789851]
[1723842733493,7.0917,141.01,140.93,7.0956]
[1723842733713,7.0902,141.04,140.94,33.78]
[1723842734121,7.0902,141.04,140.95,7.0946]
[1723842734703,7.0902,141.04,140.96,52.095]
[1723842735023,7.0902,141.04,140.96,59.189]
[1723842736419,6.1324,141.08,140.96,59.189]
[1723842736623,53.78,141.07,140.97,7.0935]
[1723842736836,7.0895,141.06,140.97,7.0935]
[1723842737130,20.0,141.05,140.97,7.0935]
[1723842737422,60.8698,141.05,140.96,76.9238]
[1723842737931,60.8698,141.05,140.97,7.0935]
[1723842738102,7.0903,141.04,140.96,76.9238]
[1723842738298,7.0903,141.04,140.96,69.8288]
[1723842741823,7.0903,141.04,140.97,7.0936]
[1723842742030,27.0898,141.05,140.97,7.0936]
[1723842744340,53.78,141.05,140.96,69.8287]
[1723842745143,33.78,141.03,140.96,24.8287]
[1723842745431,7.0912,141.02,140.95,7.0945]
[1723842745635,7.0912,141.02,140.94,7.095]
[1723842745799,7.0912,141.02,140.94,14.19]
[1723842746311,33.78,141.01,140.94,7.095]
[1723842746510,40.8718,141.01,140.94,14.19]
[1723842748014,7.0913,141.02,140.94,14.19]
[1723842749136,7.0906,141.03,140.95,7.0946]
[1723842749321,20.0,141.02,140.96,7.0941]
[1723842762528,20.0,141.02,140.95,69.8309]
[1723842762529,27.0912,141.02,140.95,69.8309]
[1723842762933,27.0912,141.02,140.95,76.1445]
[1723842762934,20.0,141.02,140.95,76.1445]
[1723842763733,20.0,141.02,140.96,7.0942]
[1723842763932,33.78,141.07,140.97,7.0936]
[1723842764137,20.0,141.06,140.97,7.0936]
[1723842764339,7.0905,141.04,140.96,7.094]
[1723842764543,20.0,141.03,140.96,7.094]
[1723842766748,20.0,141.03,140.97,7.0936]
[1723842767133,40.87,141.05,140.98,7.0931]
[1723842767456,7.09,141.05,140.98,7.0931]
[1723842767756,20.0,141.04,140.98,7.0931]
[1723842769249,33.78,140.99,140.95,52.095]
[1723842769565,33.78,141.01,140.93,16.2321]
[1723842769852,23.7545,141.02,140.93,16.2321]
[1723842770032,7.0918,141.01,140.93,16.2321]
[1723842770230,20.0,141.0,140.93,16.2321]
[1723842770440,20.0,141.0,140.93,11.2321]
[1723842770646,20.0,141.0,140.94,7.095]
[1723842771056,20.0,141.01,140.94,7.095]
[1723842772359,7.0952,140.94,140.92,7.9778851]
[1723842772537,7.0927,140.99,140.92,7.9778851]
[1723842772861,27.0932,140.98,140.92,7.9778851]
[1723842773063,20.0,140.98,140.92,7.9778851]
[1723842773425,20.0,140.98,140.92,0.8828851]
[1723842773843,40.8737,140.97,140.92,0.8828851]
[1723842774229,33.78,140.95,140.92,0.8828851]
[1723842775851,20.0,140.94,140.92,0.8828851]
[1723842776043,33.78,140.95,140.92,0.8828851]
[1723842776241,20.0,140.94,140.92,0.8828851]
[1723842776639,7.0941,140.97,140.92,0.8828851]
[1723842777158,20.0,140.96,140.92,0.8828851]
[1723842778136,33.78,141.0,140.92,6.9804851]
[1723842778668,7.0935,140.98,140.92,6.9804851]
[1723842779033,33.78,141.0,140.92,6.9804851]
[1723842779780,27.0927,140.99,140.92,6.9804851]
[1723842779944,49.9433,141.02,140.92,6.9804851]
[1723842780469,33.78,141.04,140.93,15.7513]
[1723842780674,33.78,141.04,140.93,49.5313]
[1723842780852,42.33610476,141.08,140.95,51.5166]
[1723842781039,33.78,141.06,140.96,45.0]
[1723842781246,7.0906,141.04,140.96,45.0]
[1723842781553,7.0906,141.04,140.96,52.094]
[1723842782135,7.0896,141.06,140.97,7.0936]
[1723842782560,20.0,141.05,140.97,7.0936]
[1723842783064,7.0887,141.07,141.0,15.6692]
[1723842783273,7.0891,141.06,141.0,15.6692]
[1723842783478,7.0887,141.07,141.0,15.6692]
[1723842783774,23.24,141.09,141.0,22.7612]
[1723842783942,7.0886,141.08,141.0,15.6692]
[1723842784147,8.55610476,141.11,141.02,7.0909]
[1723842784367,40.1823,141.12,141.02,7.0909]
[1723842784944,49.7187,141.14,141.03,7.0903]
[1723842785173,7.0865,141.12,141.03,7.0903]
[1723842785375,49.7187,141.14,141.03,7.0903]
[1723842785376,49.7187,141.14,141.04,7.09]
[1723842785583,33.78,141.14,141.04,7.09]
[1723842786249,7.0862,141.12,141.05,1.41771644]
[1723842786550,7.0862,141.12,141.04,7.09]
[1723842786745,7.0855,141.14,141.05,7.0895]
[1723842786954,7.0855,141.14,141.05,1.41766679]
[1723842787154,7.0855,141.14,141.05,46.41766679]
[1723842787347,7.0855,141.14,141.06,7.089]
[1723842787540,7.0855,141.14,141.07,1.41753935]
[1723842787943,7.0846,141.15,141.07,22.3708]
[1723842788463,28.408879,141.19,141.07,66.7831]
[1723842788656,33.78,141.2,141.09,6.292]
[1723842789162,33.78,141.2,141.1,45.0]
[1723842789666,7.083,141.19,141.11,7.0866]
[1723842790665,20.0,141.18,141.12,1.41701776]
[1723842790867,20.0,141.18,141.11,7.0866]
[1723842791039,7.0831,141.18,141.1,7.0871]
[1723842792277,20.0,141.17,141.1,7.0871]
[1723842793350,20.0,141.17,141.1,6.5871]
[1723842795266,20.0,141.17,141.11,7.0866]
[1723842795454,20.0,141.17,141.1,7.087]
[1723842795861,20.0,141.17,141.11,7.0866]
[1723842797671,20.0,141.18,141.11,7.0866]
[1723842798364,27.0832,141.18,141.11,7.0866]
[1723842798569,7.0832,141.18,141.1,7.087]
[1723842798775,20.0,141.17,141.1,7.087]
[1723842798969,20.0,141.17,141.09,24.0101]
[1723842798970,7.0842,141.16,141.09,31.0976]
[1723842799277,7.0842,141.16,141.09,24.0101]
[1723842802079,33.78,141.15,141.09,6.292]
[1723842802263,33.78,141.13,141.07,15.2823]
[1723842802469,7.0863,141.12,141.07,15.2823]
[1723842802983,40.8658,141.13,141.07,15.2823]
[1723842803163,33.78,141.13,141.07,15.2823]
[1723842803364,40.8656,141.13,141.07,15.2823]
[1723842803667,33.78,141.13,141.07,15.2823]
[1723842804964,7.0863,141.12,141.07,15.2823]
[1723842805792,40.8658,141.13,141.07,15.2823]
[1723842806994,7.0867,141.11,141.07,15.2823]
[1723842807293,7.0863,141.12,141.07,15.2823]
[1723842807898,33.78,141.13,141.05,6.2837]
[1723842808193,65.0,141.12,141.05,6.2837]
[1723842808994,7.0872,141.1,141.05,6.2837]
[1723842809180,20.0,141.12,141.05,6.2837]
[1723842809575,7.0876,141.1,141.05,6.2837]
[1723842811367,20.0,141.12,141.05,6.2837]
[1723842811368,7.0867,141.11,141.05,6.2837]
[1723842811573,20.0,141.1,141.05,6.2837]
[1723842812191,7.089,141.07,141.03,15.3445]
[1723842814379,7.0892,141.06,141.03,15.3445]
[1723842815301,7.0888,141.07,141.03,15.3445]
[1723842818404,7.0897,141.05,141.02,6.6111]
[1723842818588,7.0897,141.05,141.0,15.3445]
[1723842820708,7.0893,141.06,141.0,15.3445]
[1723842820898,20.0,141.05,141.0,15.3445]
[1723842821103,27.0897,141.05,141.0,15.3445]
[1723842822109,27.0898,141.05,141.0,15.3445]
[1723842822883,20.0,141.05,141.0,15.3445]
[1723842823287,27.09,141.05,141.0,15.3445]
[1723842823486,20.0,141.05,141.0,15.3445]
[1723842823702,27.0898,141.05,141.0,15.3445]
[1723842824793,20.0,141.05,141.0,15.3445]
[1723842825488,7.0902,141.04,141.0,15.3445]
[1723842825689,20.0,141.03,141.0,15.3445]
[1723842829217,20.0,141.04,141.0,15.3445]
[1723842829997,7.0891,141.07,141.0,15.3445]
[1723842830212,7.0882,141.08,141.0,22.4365]
[1723842830413,7.0887,141.07,141.0,22.4365]
[1723842830714,7.0892,141.06,141.0,15.3445]
[1723842830916,7.0887,141.07,141.0,15.3445]
[1723842831296,7.0893,141.06,141.0,15.3445]
[1723842831501,33.78,141.08,141.0,15.3445]
[1723842831502,7.0888,141.07,141.0,15.3445]
[1723842832315,20.0,141.06,141.0,15.3445]
[1723842832893,20.0,141.06,141.0,22.4366]
[1723842834196,20.0,141.06,141.01,7.0916]
[1723842834416,20.0,141.09,141.01,7.0916]
[1723842834601,7.0887,141.07,141.0,22.4365]
[1723842834801,20.0,141.06,141.0,22.4365]
[1723842836407,20.0,141.06,141.0,15.3445]
[1723842837019,27.0891,141.06,141.0,15.3445]
[1723842837402,20.0,141.06,141.0,15.3445]
[1723842837617,20.0,141.06,141.0,22.4366]
[1723842838910,7.0902,141.04,140.95,17.7358]
[1723842839111,7.0915,141.02,140.94,7.0951]
[1723842839311,20.0,141.01,140.94,7.0951]
[1723842840318,7.0908,141.03,140.95,17.7362]
[1723842840516,7.0903,141.04,140.97,6.403]
[1723842840708,7.0903,141.04,140.92,7.9778851]
[1723842840709,20.0,141.03,140.92,0.8828851]
[1723842840903,7.094,140.97,140.92,0.8828851]
[1723842841917,7.0933,140.98,140.92,0.8828851]
[1723842842113,20.0,140.97,140.92,0.8828851]
[1723842842824,33.78,140.95,140.92,0.8828851]
[1723842843026,40.8757,140.93,140.92,0.8828851]
[1723842843226,105.8757,140.93,140.92,0.8828851]
[1723842843602,27.0957,140.93,140.92,0.8828851]
[1723842844816,27.0957,140.93,140.92,0.7980851]
[1723842845029,6.2829,140.92,140.78,0.8828851]
[1723842845244,33.78,140.89,140.78,0.8828851]
[1723842845449,65.0,140.88,140.78,0.8828851]
[1723842845728,65.0,140.88,140.78,7.9856851]
[1723842845729,7.0988,140.87,140.78,7.9856851]
[1723842846122,7.0988,140.87,140.79,7.1027]
[1723842846311,20.0,140.88,140.78,0.8828851]
[1723842846513,45.0,140.87,140.78,0.8828851]
[1723842846716,27.0992,140.86,140.78,7.9860851]
[1723842846912,33.78,140.91,140.78,34.6628851]
[1723842847114,7.0982,140.88,140.8,7.1022]
[1723842847310,65.0,140.9,140.79,17.7561]
[1723842847510,20.0,140.9,140.79,17.7561]
[1723842847713,27.0973,140.9,140.82,7.1012]
[1723842848125,58.1319,140.95,140.83,22.8324]
[1723842848319,51.5171,140.95,140.83,22.8324]
[1723842848526,7.0962,140.92,140.85,7.0997]
[1723842848903,7.0957,140.93,140.85,7.0997]
[1723842849931,20.0,140.92,140.85,7.0997]
[1723842850107,20.0,140.92,140.86,7.0991]
[1723842850308,20.0,140.93,140.86,7.0991]
[1723842850909,27.0957,140.93,140.86,7.0991]
[1723842852239,20.0,140.93,140.87,7.0986]
[1723842852546,20.0,140.96,140.87,7.0986]
[1723842852708,45.0,140.95,140.87,7.0986]
[1723842852908,7.0953,140.94,140.86,7.0991]
[1723842853109,20.0,140.93,140.86,7.0991]
[1723842854741,27.0958,140.93,140.86,7.0991]
[1723842855047,27.0958,140.93,140.83,22.8324]
[1723842855048,33.78,140.91,140.83,22.8324]
[1723842855206,7.0983,140.88,140.83,22.8324]
[1723842855610,33.78,140.89,140.83,22.8324]
[1723842855832,20.0,140.88,140.83,22.8324]
[1723842856018,27.0985,140.88,140.83,22.8324]
[1723842856827,20.0,140.88,140.83,22.8324]
[1723842857141,7.0978,140.89,140.83,22.8324]
[1723842857346,20.0,140.88,140.83,22.8324]
[1723842859234,27.0982,140.88,140.83,22.8324]
[1723842859716,20.0,140.88,140.83,22.8324]
[1723842860146,7.0978,140.89,140.83,22.8324]
[1723842860334,20.0,140.88,140.83,22.8324]
[1723842860846,7.41241451,140.88,140.83,29.933]
[1723842861023,7.41241451,140.88,140.83,22.8324]
[1723842872543,7.41241451,140.88,140.83,29.933]
[1723842873244,7.41241451,140.88,140.83,22.8324]
[1723842874334,7.36424442,140.88,140.83,22.8324]
[1723842874748,7.36424442,140.88,140.84,17.7499]
[1723842875062,7.0957,140.93,140.85,7.0994]
[1723842875259,20.0,140.92,140.85,7.0994]
[1723842876662,20.0,140.92,140.87,7.0987]
[1723842876851,8.033216,140.93,140.87,7.0987]
[1723842877375,8.033216,140.93,140.88,21.9789]
[1723842878150,20.0,140.92,140.88,21.9789]
[1723842878663,8.033216,140.93,140.88,29.077]
[1723842878839,33.78,140.96,140.82,15.8426]
[1723842879163,33.78,140.92,140.82,33.595]
[1723842879344,33.78,140.9,140.82,33.595]
[1723842879552,27.0978,140.89,140.82,33.595]
[1723842880359,20.0,140.89,140.82,40.6962]
[1723842882152,20.0,140.89,140.83,7.1005]
[1723842882355,20.0,140.9,140.83,7.1005]
[1723842883742,27.0973,140.9,140.83,7.1005]
[1723842885150,27.0973,140.9,140.82,40.6961]
[1723842888355,27.0973,140.9,140.82,33.595]
[1723842888959,27.0973,140.9,140.82,40.6958]
[1723842889169,20.0,140.9,140.83,7.1006]
[1723842890456,27.0973,140.9,140.83,7.1006]
[1723842891059,7.0978,140.89,140.82,33.595]
[1723842891283,7.0978,140.89,140.82,40.6961]
[1723842892562,27.0973,140.9,140.82,40.6961]
[1723842892872,53.78,140.9,140.82,15.8426]
[1723842893080,45.0,140.89,140.82,15.8426]
[1723842893294,7.0978,140.89,140.82,22.9437]
[1723842894882,7.0978,140.89,140.82,15.8426]
[1723842895991,7.0983,140.88,140.82,15.8426]
[1723842896771,7.0991,140.87,140.82,15.8426]
[1723842898391,7.0983,140.88,140.82,15.8426]
[1723842898718,65.0,140.87,140.78,0.8828851]
[1723842899016,7.1011,140.83,140.78,0.8828851]
[1723842899391,7.1003,140.84,140.78,0.8828851]
[1723842900063,7.1027,140.79,140.78,0.8828851]
[1723842900269,13.58,140.81,140.78,0.8828851]
[1723842900512,20.0,140.8,140.78,0.8828851]
[1723842900814,20.6827,140.79,140.78,0.8828851]
[1723842900969,72.1027,140.79,140.78,0.8828851]
[1723842901176,85.6827,140.79,140.78,0.8828851]
[1723842901689,27.1027,140.79,140.78,0.8828851]
[1723842901894,72.1027,140.79,140.78,0.8828851]
[1723842902077,27.1027,140.79,140.78,0.8828851]
[1723842902276,72.1027,140.79,140.78,0.8828851]
[1723842902483,52.1027,140.79,140.78,0.8828851]
[1723842902687,7.1023,140.8,140.78,0.8828851]
[1723842903100,7.1018,140.81,140.78,0.8828851]
[1723842903594,7.1013,140.82,140.78,0.8828851]
[1723842903769,7.1008,140.83,140.78,0.8828851]
[1723842903974,20.0,140.82,140.78,0.8828851]
[1723842904383,15.8874,140.86,140.78,0.8828851]
[1723842904384,7.0993,140.86,140.78,0.8828851]
[1723842904589,8.03321587,140.87,140.78,0.8828851]
[1723842905185,7.1007,140.84,140.78,0.8828851]
[1723842905387,7.0997,140.85,140.78,0.8828851]
[1723842906372,7.0997,140.85,140.78,7.9860851]
[1723842906579,7.0992,140.86,140.78,7.9860851]
[1723842906778,20.0,140.85,140.79,7.1027]
[1723842906977,7.1009,140.83,140.78,0.8828851]
[1723842907380,53.99,140.85,140.78,0.8828851]
[1723842907381,7.1017,140.82,140.78,0.8828851]
[1723842907902,41.0908,140.83,140.78,0.8828851]
[1723842908984,35.295,140.85,140.65,7.1097]
[1723842908985,7.1058,140.73,140.65,7.1097]
[1723842909584,14.2155,140.73,140.65,7.1097]
[1723842909880,14.2155,140.73,140.66,17.7725]
[1723842910304,7.1097,140.73,140.66,24.8817]
[1723842910611,7.1052,140.75,140.66,14.7725]
[1723842910803,20.0,140.74,140.66,14.7725]
[1723842911011,27.1055,140.74,140.66,14.7725]
[1723842911540,27.1055,140.74,140.66,21.8814]
[1723842911690,7.1048,140.75,140.66,14.7725]
[1723842912094,7.1048,140.75,140.67,7.1087]
[1723842912589,41.0943,140.76,140.66,14.7725]
[1723842912803,8.03321587,140.8,140.69,7.1073]
[1723842912804,7.1041,140.77,140.69,7.1073]
[1723842913182,7.1051,140.75,140.68,17.7702]
[1723842913713,33.99,140.78,140.69,7.1076]
[1723842913918,27.1041,140.77,140.69,7.1076]
[1723842914121,7.1045,140.76,140.69,7.1076]
[1723842914489,41.0945,140.76,140.69,7.1076]
[1723842915391,41.0945,140.76,140.68,24.8783]
[1723842917115,41.0945,140.76,140.69,7.1077]
[1723842918598,20.0,140.77,140.71,7.1064]
[1723842918924,20.0,140.77,140.71,7.1066]
[1723842919125,7.1029,140.79,140.72,7.1062]
[1723842920393,41.0923,140.8,140.73,7.1057]
[1723842920609,33.99,140.8,140.73,7.1057]
[1723842921818,20.0,140.79,140.73,7.1057]
[1723842922820,33.99,140.8,140.74,7.1051]
[1723842923199,51.755,140.82,140.74,17.7628]
[1723842923396,41.0903,140.84,140.75,6.4757]
[1723842924123,41.0903,140.84,140.77,7.1037]
[1723842924832,33.99,140.84,140.78,7.103]
[1723842926306,17.7603,140.87,140.81,7.1017]
[1723842926512,41.0886,140.88,140.79,16.0493]
[1723842926823,58.8489,140.88,140.8,24.8565]
[1723842927692,20.0,140.87,140.8,24.8565]
[1723842928089,27.0987,140.87,140.8,24.8565]
[1723842928293,27.0987,140.87,140.8,17.7546]
[1723842928294,7.0993,140.86,140.8,17.7546]
[1723842928495,41.0893,140.86,140.79,23.1519]
[1723842929126,27.0988,140.87,140.8,7.1022]
[1723842933498,33.99,140.86,140.76,17.7605]
[1723842933705,41.0903,140.84,140.77,7.1034]
[1723842933920,7.1009,140.83,140.76,24.8646]
[1723842934221,7.1019,140.81,140.75,21.4933]
[1723842936698,41.0914,140.82,140.75,28.5979]
[1723842936901,7.1014,140.82,140.75,28.5979]
[1723842938419,7.1008,140.83,140.75,28.5979]
[1723842938735,20.0,140.82,140.75,28.5979]
[1723842939024,20.0,140.82,140.76,7.1042]
[1723842940219,52.1001,140.85,140.78,7.1032]
[1723842940601,7.0993,140.86,140.79,7.1027]
[1723842940809,33.99,140.86,140.77,17.7587]
[1723842941229,33.99,140.86,140.79,7.1025]
[1723842941727,33.99,140.89,140.8,7.1021]
[1723842942717,32.49,140.89,140.8,7.1021]
[1723842942924,20.0,140.88,140.8,7.1021]
[1723842943120,39.5881,140.89,140.81,13.4546]
[1723842943428,39.5881,140.89,140.82,16.0081]
[1723842944017,24.8539,140.9,140.82,16.0081]
[1723842944331,24.8539,140.9,140.82,23.1092]
[1723842944629,24.8539,140.9,140.83,7.1006]
[1723842945128,7.0973,140.9,140.83,7.1006]
[1723842945333,20.0,140.89,140.83,7.1006]
[1723842945509,20.0,140.89,140.84,7.1002]
[1723842945706,20.0,140.9,140.84,7.1002]
[1723842945925,20.0,140.9,140.83,24.8519]
[1723842946104,27.0972,140.9,140.83,24.8519]
[1723842946617,20.0,140.9,140.83,17.7513]